{"text_format":"3","workbook":"xlsx","n_sheets":1,"sheets":["Sheet1"],"not_rendered":{"defined_names":2},"read":"whole","date_system":"1900"}

{"sheet":"Sheet1","index":0,"n_rows":49,"n_cols":7,"rows_kept":49,"merged":[[1,0,1,6]]}
["附件一"]
["2025年湖南省家电以旧换新活动长沙市第八批参与企业名单"]
["序号","所属区","统一社会信用代码","企业名称","门店名称","详细地址","合作回收企业名称"]
[{"$f":"MAX(A$3:$A3)+1","v":1},"湘江新区","91430104MAELJR5B0Y","长沙呈凯商贸有限公司","长沙呈凯商贸有限公司","湖南省长沙市岳麓区望城坡街道银桂路1号郁金香家居建材市场402号-482室","湖南万容固体废物处理有限公司"]
[{"$f":"MAX(A$3:$A4)+1","v":2},"湘江新区","91430104MAEDU9G129","长沙市瑞居家用电器有限公司","长沙市瑞居家用电器有限公司","湖南省长沙市岳麓区观沙岭街道银杉路安居乐家居建材广场二楼铺位2-42","湖南绿色再生资源有限公司"]
[{"$f":"MAX(A$3:$A5)+1","v":3},"湘江新区","91430104MAEKRN4T30","长沙凌翎霖家具有限公司","长沙凌翎霖家具有限公司","湖南省长沙市岳麓区观沙岭街道银杉路安居乐家居建材广场四楼走廊4-06","湖南城产源环保科技有限公司"]
[{"$f":"MAX(A$3:$A6)+1","v":4},"湘江新区","91430100MABY0Y9J3C","长沙誉驰智能科技有限公司","长沙誉驰智能科技有限公司唐湘电器城分公司","湖南省长沙市雨花区圭塘街道万家丽中路157号唐湘电器城4栋8号二至四层","长沙合昌顺环保科技有限公司"]
[{"$f":"MAX(A$3:$A7)+1","v":5},"湘江新区","91430104MAEF9DWR56","长沙首耀电器有限公司","长沙首耀电器有限公司","湖南省长沙市岳麓区望城坡街道涧塘社区涧塘24栋106号一层","湖南绿动资源循环有限公司"]
[{"$f":"MAX(A$3:$A8)+1","v":6},"湘江新区","91430112MACJ0MGD4L","长沙明鑫智能科技有限公司","长沙明鑫智能科技有限公司","湖南湘江新区黄金园街道普瑞大道一段1555号金桥市场集群3区2栋四层1281-1-003号","湖南万容固体废物处理有限公司"]
[{"$f":"MAX(A$3:$A9)+1","v":7},"芙蓉区","91430112MA7C8KM25R","长沙盈选商贸有限公司","长沙盈选商贸有限公司","湖南省长沙市芙蓉区湘湖街道三湘南湖大市场家电城民用家具精品楼一楼1014号","湖南绿色再生资源有限公司"]
[{"$f":"MAX(A$3:$A10)+1","v":8},"芙蓉区","91430102MAEJ266U0X","长沙丽巍电器有限公司","长沙市丽巍电器有限公司","湖南省长沙市芙蓉区湘湖街道三湘南湖大市场家电城电器城2栋一楼46-47号","湖南绿动资源循环有限公司"]
[{"$f":"MAX(A$3:$A11)+1","v":9},"芙蓉区","91430102MA4RU5P56Q","长沙民熙百货零售有限公司","长沙民熙百货零售有限公司","湖南省长沙市芙蓉区隆平高科技园隆园五路2号丰兴机械电子产业园10栋402-K407","湖南绿色再生资源有限公司"]
[{"$f":"MAX(A$3:$A12)+1","v":10},"芙蓉区","91430111MABYJGYNXC","湖南创酷暖通设备有限公司","湖南创酷暖通设备有限公司","湖南省长沙市芙蓉区湘湖街道三湘南湖建材市场一楼1006、1007","湖南绿色再生资源有限公司"]
[{"$f":"MAX(A$3:$A13)+1","v":11},"芙蓉区","91430102329331315J","技研舍（湖南）技术服务有限责任公司","长沙市雨花区住研工程技术中心","湖南省长沙市雨花区圭塘街道万家丽中路三段36号喜盈门（长沙）建材家具商场5层5501","湖南绿动资源循环有限公司"]
[{"$f":"MAX(A$3:$A14)+1","v":12},"芙蓉区","91430102MA4LHTUT39","长沙市秋毫电子科技有限公司","长沙市秋毫电子科技有限公司","湖南省长沙市芙蓉区朝阳街街道车站中路193号国储城市天地1517室","湖南绿色再生资源有限公司"]
[{"$f":"MAX(A$3:$A15)+1","v":13},"芙蓉区","91430100444905388U","中国邮政集团有限公司长沙市分公司","中国邮政集团有限公司长沙市车站路邮政所","长沙市芙蓉区车站中路460号","湖南万容固体废物处理有限公司"]
[{"$f":"MAX(A$3:$A16)+1","v":14},"芙蓉区","91430105MA4TBABLXH","湖南智程贸易有限责任公司","湖南智程贸易有限责任公司","湖南省长沙市芙蓉区湘湖街道三湘南湖大市场建材城建材区一栋二楼24号","湖南万容固体废物处理有限公司"]
[{"$f":"MAX(A$3:$A17)+1","v":15},"雨花区","91430102MAC6996C4B","长沙市盛道电器贸易有限公司","长沙市盛道电器贸易有限公司","长沙市雨花区高桥街道万家丽中路二段8号华晨商业广场—购物中心A101第五层","湖南绿色再生资源有限公司"]
[{"$f":"MAX(A$3:$A18)+1","v":16},"雨花区","91430111MACTLYBH15","湖南湘饰汇供应链管理有限公司","湖南湘饰汇供应链管理有限公司","长沙市雨花区同升街道汇金路877号嘉华智谷产业园Q1 、A2、A3栋704号","湖南绿色再生资源有限公司"]
[{"$f":"MAX(A$3:$A19)+1","v":17},"天心区","91430103096043119A","长沙优立得工程设备有限公司","长沙优立得工程设备有限公司","湖南省长沙市天心区赤岭路街道殷家冲街89号上源湘江华庭4栋107","湖南万容固体废物处理有限公司"]
[{"$f":"MAX(A$3:$A20)+1","v":18},"天心区","91430103MA4RFCAW94","湖南鸿熠商贸有限公司","湖南鸿熠商贸有限公司","湖南省长沙市天心区玉桂路59号紫越香苑地下室-117、-118、-119号","湖南湘江国源科技有限公司"]
[{"$f":"MAX(A$3:$A21)+1","v":19},"天心区","91430103MAEKEHG13J","长沙昱菲暖通设备有限公司","长沙昱菲暖通设备有限公司","湖南省长沙市天心区暮云街道创世纪广场二期红星美凯龙一楼A8062","湖南万容固体废物处理有限公司"]
[{"$f":"MAX(A$3:$A22)+1","v":20},"天心区","91430111MA4PTA0G3G","长沙万鼎连环境科技有限公司","长沙万鼎连环境科技有限公司","湖南省长沙市天心区林大路15号中云公寓906号","湖南绿动资源循环有限公司"]
[{"$f":"MAX(A$3:$A23)+1","v":21},"天心区","91430103MAENC11LX6","长沙利红百惠电器销售有限公司","长沙利红百惠电器销售有限公司","湖南省长沙市天心区书院南路423号乾城嘉园1栋101号","长沙众融再生资源有限公司"]
[{"$f":"MAX(A$3:$A24)+1","v":22},"开福区","91430105MAEARA0G7U","长沙智铭达科技有限公司","长沙智铭达科技有限公司","湖南省长沙市开福区东风路街道芙蓉中路一段161号新时代商务广场2302-D47号","长沙智铭达科技有限公司"]
[{"$f":"MAX(A$3:$A25)+1","v":23},"开福区","91430105MACX7JX5XC","湖南量腾科技有限公司","湖南量腾科技有限公司","湖南省长沙市开福区四方坪街道双拥路9号长城万富汇大厦9038、9039、9040号房-292","北京钱瑞科技有限公司"]
[{"$f":"MAX(A$3:$A26)+1","v":24},"长沙县","91430121MACU3EAK82","永旺（湖南）商业有限公司","永旺（湖南）商业有限公司","湖南省长沙县星沙街道开元东路308号永旺梦乐城长沙星沙购物中心1层100铺位号，2层200铺位号","湖南万容固体废物处理有限公司"]
[{"$f":"MAX(A$3:$A27)+1","v":25},"长沙县","91430100MA4L6NE40G","湖南长沙科峻机电设备有限公司","湖南科峻机电设备有限公司","湖南省长沙市长沙县星沙街道仙塘岭社区松雅小区C9栋特立路488号","湖南绿色再生资源有限公司"]
[{"$f":"MAX(A$3:$A28)+1","v":26},"长沙县","91430121MAEPG15X7M","长沙灶福厨电有限公司","长沙灶福厨电有限公司","湖南省长沙县星沙街道星城社区安置房D7栋101","湖南万容固体废物处理有限公司"]
[{"$f":"MAX(A$3:$A29)+1","v":27},"浏阳市","91430181MAELU81T03","浏阳市新品电器有限公司","浏阳市新品电器有限公司","湖南省长沙市浏阳市蕉溪镇常丰村常丰路3号","浏阳信福家电器有限公司"]
[{"$f":"MAX(A$3:$A30)+1","v":28},"浏阳市","91430181MAEMN3FG26","浏阳市美速电器有限公司","浏阳市美速电器有限公司","湖南省长沙市浏阳市沙市镇学苑路125、127号","浏阳信福家电器有限公司"]
[{"$f":"MAX(A$3:$A31)+1","v":29},"浏阳市","91430181MAENEPBLXC","浏阳市优哲电器销售有限公司","浏阳市优哲电器销售有限公司","湖南省长沙市浏阳市古港镇桐坑北路219号","湖南绿动资源循环有限公司"]
[{"$f":"MAX(A$3:$A32)+1","v":30},"浏阳市","91430181MAELU4FL3Q","浏阳市豫辉电器销售有限公司","浏阳市豫辉电器销售有限公司","湖南省长沙市浏阳市荷花街道嗣同村胡家组125号","湖南绿动资源循环有限公司"]
[{"$f":"MAX(A$3:$A33)+1","v":31},"浏阳市","91430181MA4LKGB06H","浏阳市君辉电器贸易有限公司","浏阳市君辉电器贸易有限公司","浏阳市永安镇永安西路147号","青岛鲸智再生环保科技有限公司"]
[{"$f":"MAX(A$3:$A34)+1","v":32},"浏阳市","91430181MAEPC0H17K","浏阳市扬松电器销售有限公司","浏阳市扬松电器销售有限公司","湖南省长沙市浏阳市文家市镇文家市社区会师路33号","湖南绿动资源循环有限公司"]
[{"$f":"MAX(A$3:$A35)+1","v":33},"浏阳市","91430181MAEJL2DX2R","浏阳市旭明电器销售有限公司","浏阳市旭明电器销售有限公司","湖南省长沙市浏阳市古港镇桐坑北路87号一楼","湖南省绿源再生资源回收有限公司"]
[{"$f":"MAX(A$3:$A36)+1","v":34},"浏阳市","91430181MAEMBLD88T","浏阳匠焰厨电有限公司","浏阳匠焰厨电有限公司","湖南省长沙市浏阳市淮川街道金沙中路14号","湖南恒迅工程设备有限公司"]
[{"$f":"MAX(A$3:$A37)+1","v":35},"浏阳市","91430181MA7ADD4C94","长沙柏诚暖通工程有限公司","长沙柏诚暖通工程有限公司","浏阳市集里街道百宜社区欧亚达市场S2栋132号","麦克维尔中央空调有限公司长沙分公司"]
[{"$f":"MAX(A$3:$A38)+1","v":36},"浏阳市","91430181MAEKH37W8U","浏阳市京扬电器销售有限公司","浏阳市京扬电器销售有限公司","湖南省长沙市浏阳市大围山镇东门村大围山路66号一楼","湖南绿动资源循环有限公司"]
[{"$f":"MAX(A$3:$A39)+1","v":37},"浏阳市","91430181MAEPMDN313","浏阳市老游电器有限公司","浏阳市老游电器有限公司","湖南省长沙市浏阳市淳口镇鸭头村集镇组90号","浏阳信福家电器有限公司"]
[{"$f":"MAX(A$3:$A40)+1","v":38},"宁乡市","91430182MAELK9K02C","宁乡双佑家电家具有限公司","宁乡双佑家电家具有限公司","湖南长沙市宁乡市大屯营镇石家湾社区大屯营集镇35号","湖南绿色再生资源有限公司"]
[{"$f":"MAX(A$3:$A41)+1","v":39},"宁乡市","91430182MAEMJJ2A22","宁乡市宁豪家用电器有限公司","宁乡市宁豪家用电器有限公司","湖南省长沙市宁乡市历经铺街道金南社区楚沩东路1403号","长沙众融再生资源有限公司"]
[{"$f":"MAX(A$3:$A42)+1","v":40},"宁乡市","91430124MAEDRNR9XM","宁乡市新智优享家电商行（个人独资）","宁乡市新智优享家电商行（个人独资）","湖南省长沙市宁乡市资福乡窑里社区资福集镇101号","湖南万容固体废物处理有限公司"]
[{"$f":"MAX(A$3:$A43)+1","v":41},"宁乡市","91430124MAEEY9WC71","湖南广运商贸有限公司长沙宁乡楚沩西路分公司","湖南广运商贸有限公司长沙宁乡楚沩西路分公司（美的智慧家）","长沙市宁乡市玉潭镇楚沩西路68号富仕名城1栋110号","湖南绿色再生资源有限公司"]
[{"$f":"MAX(A$3:$A44)+1","v":42},"宁乡市","91430182MAELUL9L1J","宁乡市文燕电器有限公司","宁乡市文燕电器有限公司","湖南省长沙市宁乡市黄材镇青羊社区下河组98号","湖南绿色再生资源有限公司"]
[{"$f":"MAX(A$3:$A45)+1","v":43},"宁乡市","91430124MAEE4AHQ5N","宁乡市钱途无量电器有限公司","宁乡市钱途无量电器有限公司","湖南省长沙市宁乡市煤炭坝镇煤炭坝社区商贸街12栋106号","湖南绿色再生资源有限公司"]
[{"$f":"MAX(A$3:$A46)+1","v":44},"宁乡市","91430182MAEM9TJ28B","长沙春图电器有限公司","长沙春图电器有限公司","湖南省长沙市宁乡市玉潭街道合安社区新康安置区4区12栋3号1楼","湖南城产源环保科技有限公司"]
[{"$f":"MAX(A$3:$A47)+1","v":45},"宁乡市","91430124MAEJB50B3Y","宁乡火星人厨房设备有限公司","宁乡火星人厨房设备有限公司","湖南省长沙市宁乡市玉潭街道玉兴路2号（豪德广场）4-1栋116室","长沙众融再生资源有限公司"]
[{"$f":"MAX(A$3:$A48)+1","v":46},"宁乡市","91430182MAEPDPGR73","宁乡优信家家电有限公司","宁乡优信家家电有限公司","湖南省长沙市宁乡市玉潭街道楚沩社区玉兴路玉兴安置区16,17,18,19号","湖南万容固体废物处理有限公司"]